fUSD/lending_fUSD_20250120
["ID","MTS","AMOUNT","RATE_DAILY","PERIOD"]
[349689655,1737377463093,-500.0,0.00020079,2]
[349689656,1737377463104,-500.0,0.00020079,2]
[349689657,1737377463114,-500.0,0.00020079,2]
[349689658,1737377463124,-500.0,0.00020079,2]
[349689659,1737377463134,-500.0,0.00020079,2]
[349689660,1737377463144,-565.0089185,0.00020079,2]
[349689661,1737377463153,-500.0,0.00020079,2]
[349689662,1737377463163,-500.0,0.00020079,2]
[349689663,1737377463173,-500.0,0.00020079,2]
[349689664,1737377463183,-554.98,0.00020079,2]
[349689665,1737377463193,-500.0,0.00020079,2]
[349689666,1737377463203,-500.0,0.00020079,2]
[349689667,1737377463213,-706.13,0.00020079,2]
[349689668,1737377463222,-500.0,0.00020079,2]
[349689669,1737377463232,-500.0,0.00020079,2]
[349689670,1737377463241,-700.5,0.00020079,2]
[349689671,1737377463251,-500.0,0.00020079,2]
[349689672,1737377463261,-550.0,0.00020079,2]
[349689673,1737377463273,-817.82,0.00020079,2]
[349689674,1737377463283,-500.0,0.00020079,2]
[349689675,1737377463293,-500.0,0.00020079,2]
[349689676,1737377463302,-500.0,0.00020079,2]
[349689677,1737377463312,-500.0,0.00020079,2]
[349689678,1737377463323,-840.73,0.00020079,2]
[349689679,1737377463334,-500.0,0.00020079,2]
[349689680,1737377463344,-500.0,0.00020079,2]
[349689681,1737377463353,-978.26,0.00020079,2]
[349689682,1737377463363,-807.37,0.00020079,2]
[349689683,1737377463374,-500.0,0.00020079,2]
[349689684,1737377463385,-535.23,0.00020079,2]
[349689685,1737377463396,-911.36,0.00020079,2]
[349689686,1737377463406,-918.51,0.00020079,2]
[349689687,1737377463416,-500.0,0.00020079,2]
[349689688,1737377463426,-761.42,0.00020079,2]
[349689689,1737377463436,-500.0,0.00020079,2]
[349689690,1737377463446,-500.0,0.00020079,2]
[349689691,1737377463457,-2935.79,0.00020079,2]
[349689692,1737377463466,-500.0,0.00020079,2]
[349689693,1737377463476,-4234.6,0.00020079,2]
[349689694,1737377463486,-766.29,0.00020079,2]
[349689695,1737377463496,-727.87,0.00020079,2]
[349689696,1737377463506,-3864.35,0.00020079,2]
[349689697,1737377463519,-500.0,0.00020079,2]
[349689698,1737377463529,-500.0,0.00020079,2]
[349689699,1737377463539,-1299.27,0.00020079,2]
[349689700,1737377463550,-3588.13,0.00020079,2]
[349689701,1737377463560,-2046.38,0.00020079,2]
[349689702,1737377463570,-1932.2,0.00020079,2]
[349689703,1737377463581,-576.23,0.00020079,2]
[349689704,1737377463591,-500.0,0.00020079,2]
[349689705,1737377463602,-1757.51,0.00020079,2]
[349689706,1737377463612,-1791.29,0.00020079,2]
[349689707,1737377463622,-2156.53,0.00020079,2]
[349689708,1737377463633,-2141.05,0.00020079,2]
[349689709,1737377463643,-1660.42,0.00020079,2]
[349689710,1737377463654,-500.0,0.00020079,2]
[349689711,1737377463664,-1133.61,0.00020079,2]
[349689712,1737377463673,-555.92,0.00020079,2]
[349689713,1737377463684,-2180.96,0.00020079,2]
[349689714,1737377463694,-500.0,0.00020079,2]
[349689715,1737377463703,-645.51,0.00020079,2]
[349689716,1737377463713,-561.67,0.00020079,2]
[349689717,1737377463723,-2173.11,0.00020079,2]
[349689718,1737377463733,-500.0,0.00020079,2]
[349689719,1737377463743,-1564.48,0.00020079,2]
[349689720,1737377463752,-500.0,0.00020079,2]
[349689721,1737377463763,-1133.54,0.00020079,2]
[349689722,1737377463901,-1145.98,0.00020079,2]
[349689723,1737377463911,-500.0,0.00020079,2]
[349689724,1737377463922,-752.83,0.00020079,2]
[349689725,1737377463934,-500.0,0.00020079,2]
[349689726,1737377463944,-500.0,0.00020079,2]
[349689727,1737377463954,-560.53,0.00020079,2]
[349689728,1737377463963,-766.9,0.00020079,2]
[349689729,1737377463973,-500.0,0.00020079,2]
[349689730,1737377463983,-500.0,0.00020079,2]
[349689731,1737377463992,-660.28,0.00020079,2]
[349689732,1737377464002,-943.53,0.00020079,2]
[349689733,1737377464012,-1337.38,0.00020079,2]
[349689734,1737377464026,-771.84,0.00020079,2]
[349689735,1737377464035,-500.0,0.00020079,2]
[349689736,1737377464045,-500.0,0.00020079,2]
[349689737,1737377464054,-1005.87,0.00020079,2]
[349689738,1737377464064,-1060.85,0.00020079,2]
[349689739,1737377464074,-500.0,0.00020079,2]
[349689740,1737377464083,-500.0,0.00020079,2]
[349689741,1737377464094,-980.61,0.00020079,2]
[349689742,1737377464104,-874.79,0.00020079,2]
[349689743,1737377464114,-1402.18,0.00020079,2]
[349689744,1737377464123,-500.0,0.00020079,2]
[349689745,1737377464134,-1129.67,0.00020079,2]
[349689746,1737377464143,-535.06,0.00020079,2]
[349689747,1737377464153,-2752.84,0.00020079,2]
[349689748,1737377464163,-686.11,0.00020123,2]
[349689749,1737377464172,-250.0,0.00020207,2]
[349689750,1737377464181,-204.71864207,0.00020208,2]
[349689751,1737377464190,-500.0,0.00020273,2]
[349689752,1737377464200,-500.0,0.00020273,2]
[349689753,1737377464209,-500.0,0.00020273,2]
[349689754,1737377464219,-556.09692067,0.00020273,2]
[349689755,1737377464229,-500.0,0.00020273,2]
[349689756,1737377464238,-511.31780359,0.00020273,2]
[349689757,1737377464247,-546.17,0.00020273,2]
[349689758,1737377464257,-500.0,0.00020273,2]
[349689759,1737377464269,-500.0,0.00020273,2]
[349689760,1737377464278,-500.0,0.00020273,2]
[349689761,1737377464287,-528.88950233,0.00020273,2]
[349689762,1737377464297,-500.0,0.00020273,2]
[349689763,1737377464306,-500.0,0.00020273,2]
[349689764,1737377464315,-554.0240517,0.00020273,2]
[349689765,1737377464324,-500.0,0.00020273,2]
[349689766,1737377464338,-500.0,0.00020273,2]
[349689767,1737377464347,-500.0,0.00020273,2]
[349689768,1737377464356,-500.0,0.00020273,2]
[349689769,1737377464365,-500.0,0.00020273,2]
[349689770,1737377464374,-796.95,0.00020273,2]
[349689771,1737377464387,-645.14412064,0.00020273,2]
[349689772,1737377464396,-500.0,0.00020273,2]
[349689773,1737377464405,-500.0,0.00020273,2]
[349689774,1737377464415,-500.0,0.00020273,2]
[349689775,1737377464425,-622.67,0.00020273,2]
[349689776,1737377464434,-500.0,0.00020273,2]
[349689777,1737377464444,-419.78410052,0.00020273,2]
[349689778,1737377464453,-500.0,0.00020273,2]
[349689779,1737377464462,-500.0,0.00020273,2]
[349689780,1737377464472,-500.0,0.00020273,2]
[349689781,1737377464481,-500.0,0.00020273,2]
[349689782,1737377464491,-500.0,0.00020273,2]
[349689783,1737377464501,-500.0,0.00020273,2]
[349689784,1737377464510,-500.0,0.00020273,2]
[349689785,1737377464524,-500.0,0.00020273,2]
[349689786,1737377464534,-500.0,0.00020273,2]
[349689787,1737377464544,-638.44,0.00020273,2]
[349689788,1737377464553,-500.0,0.00020273,2]
[349689789,1737377464563,-500.0,0.00020273,2]
[349689790,1737377464572,-523.67554841,0.00020273,2]
[349689791,1737377464582,-500.0,0.00020273,2]
[349689792,1737377464592,-500.0,0.00020273,2]
[349689793,1737377464601,-606.47,0.00020273,2]
[349689794,1737377464611,-500.0,0.00020273,2]
[349689795,1737377464620,-754.5,0.00020273,2]
[349689796,1737377464630,-526.69,0.00020273,2]
[349689797,1737377464640,-500.0,0.00020273,2]
[349689798,1737377464650,-500.0,0.00020273,2]
[349689799,1737377464660,-500.0,0.00020273,2]
[349689800,1737377464669,-500.0,0.00020273,2]
[349689801,1737377464679,-500.0,0.00020273,2]
[349689802,1737377464689,-686.68,0.00020273,2]
[349689803,1737377464698,-500.0,0.00020273,2]
[349689804,1737377464709,-500.0,0.00020273,2]
[349689805,1737377464718,-500.0,0.00020273,2]
[349689806,1737377464727,-500.0,0.00020273,2]
[349689807,1737377464736,-500.0,0.00020273,2]
[349689808,1737377464746,-500.0,0.00020273,2]
[349689809,1737377464755,-500.0,0.00020273,2]
[349689810,1737377464766,-500.0,0.00020273,2]
[349689811,1737377464775,-500.0,0.00020273,2]
[349689812,1737377464785,-500.0,0.00020273,2]
[349689813,1737377464794,-837.57,0.00020273,2]
[349689814,1737377464804,-500.0,0.00020273,2]
[349689815,1737377464813,-500.0,0.00020273,2]
[349689816,1737377464822,-500.0,0.00020273,2]
[349689817,1737377464831,-500.0,0.00020273,2]
[349689818,1737377464840,-500.0,0.00020273,2]
[349689819,1737377464850,-895.09,0.00020273,2]
[349689820,1737377464858,-500.0,0.00020273,2]
[349689821,1737377464867,-1166.48,0.00020273,2]
[349689822,1737377464876,-992.96,0.00020273,2]
[349689823,1737377464885,-500.0,0.00020273,2]
[349689824,1737377464895,-500.0,0.00020273,2]
[349689825,1737377464906,-1201.46,0.00020273,2]
[349689826,1737377464917,-500.0,0.00020273,2]
[349689827,1737377464927,-500.0,0.00020273,2]
[349689828,1737377464938,-500.0,0.00020273,2]
[349689829,1737377464949,-500.0,0.00020273,2]
[349689830,1737377464959,-500.0,0.00020273,2]
[349689831,1737377464969,-500.0,0.00020273,2]
[349689832,1737377464979,-500.0,0.00020273,2]
[349689833,1737377464988,-533.19,0.00020273,2]
[349689834,1737377464997,-500.0,0.00020273,2]
[349689835,1737377465006,-500.0,0.00020273,2]
[349689836,1737377465016,-500.0,0.00020273,2]
[349689837,1737377465030,-500.0,0.00020273,2]
[349689838,1737377465039,-500.0,0.00020273,2]
[349689839,1737377465049,-1289.76,0.00020273,2]
[349689840,1737377465058,-500.0,0.00020273,2]
[349689841,1737377465069,-743.97,0.00020273,2]
[349689842,1737377465083,-500.0,0.00020273,2]
[349689843,1737377465097,-500.0,0.00020273,2]
[349689844,1737377465107,-500.0,0.00020273,2]
[349689845,1737377465116,-500.0,0.00020273,2]
[349689846,1737377465126,-500.0,0.00020273,2]
[349689847,1737377465137,-500.0,0.00020273,2]
[349689848,1737377465147,-500.0,0.00020273,2]
[349689849,1737377465157,-771.55,0.00020273,2]
[349689850,1737377465167,-529.43062399,0.00020273,2]
[349689851,1737377465176,-526.32024082,0.00020273,2]
[349689852,1737377465187,-1230.0,0.00020273,2]
[349689853,1737377465197,-500.0,0.00020273,2]
[349689854,1737377465206,-500.0,0.00020273,2]
[349689855,1737377465215,-500.0,0.00020273,2]
[349689856,1737377465224,-500.0,0.00020273,2]
[349689857,1737377465233,-500.0,0.00020273,2]
[349689858,1737377465242,-500.0,0.00020273,2]
[349689859,1737377465251,-500.0,0.00020273,2]
[349689860,1737377465261,-500.0,0.00020273,2]
[349689861,1737377465272,-500.0,0.00020273,2]
[349689862,1737377465281,-500.0,0.00020273,2]
[349689863,1737377465290,-500.0,0.00020273,2]
[349689864,1737377465299,-500.0,0.00020273,2]
[349689865,1737377465309,-500.0,0.00020273,2]
[349689866,1737377465318,-500.0,0.00020273,2]
[349689867,1737377465328,-500.0,0.00020273,2]
[349689868,1737377465337,-500.0,0.00020273,2]
[349689869,1737377465346,-592.62756161,0.00020273,2]
[349689870,1737377465355,-1612.66,0.00020273,2]
[349689871,1737377465364,-500.0,0.00020273,2]
[349689872,1737377465373,-500.0,0.00020273,2]
[349689873,1737377465382,-500.0,0.00020273,2]
[349689874,1737377465392,-574.7938158,0.00020273,2]
[349689875,1737377465401,-500.0,0.00020273,2]
[349689876,1737377465411,-536.54,0.00020273,2]
[349689877,1737377465420,-3644.75,0.00020273,2]
[349689878,1737377465430,-500.0,0.00020273,2]
[349689879,1737377465439,-500.0,0.00020273,2]
[349689880,1737377465449,-500.0,0.00020273,2]
[349689881,1737377465458,-500.0,0.00020273,2]
[349689882,1737377465468,-626.19,0.00020273,2]
[349689883,1737377465477,-500.0,0.00020273,2]
[349689884,1737377465487,-756.469785,0.00020273,2]
[349689885,1737377465496,-500.0,0.00020273,2]
[349689886,1737377465506,-500.0,0.00020273,2]
[349689887,1737377465517,-1134.53,0.00020273,2]
[349689888,1737377465527,-500.0,0.00020273,2]
[349689889,1737377465536,-5822.0,0.00020273,2]
[349689890,1737377465546,-500.0,0.00020273,2]
[349689891,1737377465556,-732.04,0.00020273,2]
[349689892,1737377465565,-500.0,0.00020273,2]
[349689893,1737377465574,-1092.62,0.00020273,2]
[349689894,1737377465584,-923.97,0.00020273,2]
[349689895,1737377465593,-970.989995,0.00020273,2]
[349689896,1737377465603,-500.0,0.00020273,2]
[349689897,1737377465612,-1139.04,0.00020273,2]
[349689898,1737377465622,-1401.76,0.00020273,2]
[349689899,1737377465632,-500.0,0.00020273,2]
[349689900,1737377465641,-500.0,0.00020273,2]
[349689901,1737377465651,-500.0,0.00020273,2]
[349689902,1737377465659,-2199.52,0.00020273,2]
[349689903,1737377465669,-1107.27,0.00020273,2]
[349689904,1737377465678,-500.0,0.00020273,2]
[349689905,1737377465688,-500.0,0.00020273,2]
[349689906,1737377465697,-1073.92,0.00020273,2]
[349689907,1737377465707,-574.83,0.00020273,2]
[349689908,1737377465716,-500.0,0.00020273,2]
[349689909,1737377465725,-3230.06,0.00020273,2]
[349689910,1737377465734,-500.0,0.00020273,2]
[349689911,1737377465743,-509.12970002,0.00020273,2]
[349689912,1737377465752,-500.0,0.00020273,2]
[349689913,1737377465762,-500.0,0.00020273,2]
[349689914,1737377465774,-952.22,0.00020273,2]
[349689915,1737377465783,-582.05,0.00020273,2]
[349689916,1737377465793,-3658.7,0.00020273,2]
[349689917,1737377465802,-1103.21,0.00020273,2]
[349689918,1737377465812,-1237.78,0.00020273,2]
[349689919,1737377465821,-500.0,0.00020273,2]
[349689920,1737377465831,-500.0,0.00020273,2]
[349689921,1737377465840,-993.94,0.00020273,2]
[349689922,1737377465849,-1503.85,0.00020273,2]
[349689923,1737377465859,-639.92,0.00020273,2]
[349689924,1737377465868,-1228.19,0.00020273,2]
[349689925,1737377465878,-1377.98,0.00020273,2]
[349689926,1737377465887,-500.0,0.00020273,2]
[349689927,1737377465900,-530.1,0.00020273,2]
[349689928,1737377465910,-500.0,0.00020273,2]
[349689929,1737377465920,-1560.84,0.00020273,2]
[349689930,1737377465929,-500.0,0.00020273,2]
[349689931,1737377465938,-752.57,0.00020273,2]
[349689932,1737377465948,-1797.36,0.00020273,2]
[349689933,1737377465957,-500.0,0.00020273,2]
[349689934,1737377465966,-3077.66,0.00020273,2]
[349689935,1737377465975,-876.3,0.00020273,2]
[349689936,1737377465984,-714.91,0.00020273,2]
[349689937,1737377465994,-500.0,0.00020273,2]
[349689938,1737377466003,-1303.67,0.00020273,2]
[349689939,1737377466013,-876.98,0.00020273,2]
[349689940,1737377466027,-2597.81,0.00020273,2]
[349689941,1737377466037,-1827.08,0.00020273,2]
[349689942,1737377466046,-1615.3,0.00020273,2]
[349689943,1737377466055,-500.0,0.00020273,2]
[349689944,1737377466065,-2483.31,0.00020273,2]
[349689945,1737377466074,-2780.47,0.00020273,2]
[349689946,1737377466083,-500.0,0.00020273,2]
[349689947,1737377466095,-500.0,0.00020273,2]
[349689948,1737377466104,-3105.24,0.00020273,2]
[349689949,1737377466114,-1130.17,0.00020273,2]
[349689950,1737377466129,-1288.7,0.00020273,2]
[349689951,1737377466142,-647.49,0.00020273,2]
[349689952,1737377466152,-3353.58,0.00020273,2]
[349689953,1737377466161,-1811.0,0.00020273,2]
[349689954,1737377466171,-1109.6,0.00020273,2]
[349689955,1737377466180,-500.0,0.00020273,2]
[349689956,1737377466190,-500.0,0.00020273,2]
[349689957,1737377466200,-751.49,0.00020273,2]
[349689958,1737377466209,-944.91,0.00020273,2]
[349689959,1737377466219,-500.0,0.00020273,2]
[349689960,1737377466228,-899.05,0.00020273,2]
[349689961,1737377466238,-3103.59,0.00020273,2]
[349689962,1737377466247,-1871.8,0.00020273,2]
[349689963,1737377466256,-1086.25,0.00020273,2]
[349689964,1737377466266,-2312.31,0.00020273,2]
[349689965,1737377466279,-3725.5,0.00020273,2]
[349689966,1737377466288,-500.0,0.00020273,2]
[349689967,1737377466297,-500.0,0.00020273,2]
[349689968,1737377466307,-1721.32,0.00020273,2]
[349689969,1737377466316,-3500.19,0.00020273,2]
[349689970,1737377466326,-500.0,0.00020273,2]
[349689971,1737377466335,-1374.5,0.00020273,2]
[349689972,1737377466344,-500.0,0.00020273,2]
[349689973,1737377466354,-1285.87,0.00020273,2]
[349689974,1737377466363,-1008.2,0.00020273,2]
[349689975,1737377466373,-500.0,0.00020273,2]
[349689976,1737377466383,-500.0,0.00020273,2]
[349689977,1737377466392,-572.39,0.00020273,2]
[349689978,1737377466402,-1238.99,0.00020273,2]
[349689979,1737377466412,-500.0,0.00020273,2]
[349689980,1737377466422,-500.0,0.00020273,2]
[349689981,1737377466431,-500.0,0.00020273,2]
[349689982,1737377466440,-500.0,0.00020273,2]
[349689983,1737377466450,-4448.38,0.00020273,2]
[349689984,1737377466459,-500.0,0.00020273,2]
[349689985,1737377466469,-500.0,0.00020273,2]
[349689986,1737377466478,-1222.11,0.00020273,2]
[349689987,1737377466488,-936.38,0.00020273,2]
[349689988,1737377466498,-500.0,0.00020273,2]
[349689989,1737377466508,-1024.64,0.00020273,2]
[349689990,1737377466520,-500.0,0.00020273,2]
[349689991,1737377466530,-4455.07,0.00020273,2]
[349689992,1737377466539,-634.84,0.00020273,2]
[349689993,1737377466549,-500.0,0.00020273,2]
[349689994,1737377466559,-500.0,0.00020273,2]
[349689995,1737377466568,-500.0,0.00020273,2]
[349689996,1737377466578,-1718.2,0.00020273,2]
[349689997,1737377466587,-1517.42,0.00020273,2]
[349689998,1737377466596,-500.0,0.00020273,2]
[349689999,1737377466606,-500.0,0.00020273,2]
[349690000,1737377466615,-500.0,0.00020273,2]
[349690001,1737377466624,-500.0,0.00020273,2]
[349690002,1737377466633,-881.03,0.00020273,2]
[349690003,1737377466643,-500.0,0.00020273,2]
[349690004,1737377466652,-500.0,0.00020273,2]
[349690005,1737377466661,-250.0,0.000203,2]
[349690006,1737377466671,-250.0,0.000203,2]
[349690007,1737377466680,-250.0,0.000203,2]
[349690008,1737377466689,-250.0,0.000203,2]
[349690009,1737377466698,-250.0,0.000203,2]
[349690010,1737377466708,-250.0,0.000203,2]
[349690011,1737377466717,-250.0,0.000203,2]
[349690012,1737377466726,-250.0,0.000203,2]
[349690013,1737377466736,-250.0,0.000203,2]
[349690014,1737377466745,-250.0,0.000203,2]
[349690015,1737377466754,-250.0,0.000203,2]
[349690016,1737377466763,-250.0,0.000203,2]
[349690017,1737377466776,-250.0,0.000203,2]
[349690018,1737377466918,-250.0,0.000203,2]
[349690019,1737377466931,-250.0,0.000203,2]
[349690020,1737377466940,-250.0,0.000203,2]
[349690021,1737377466951,-250.0,0.000203,2]
[349690022,1737377466961,-250.0,0.000203,2]
[349690023,1737377466970,-250.0,0.000203,2]
[349690024,1737377466980,-250.0,0.000203,2]
[349690025,1737377466990,-250.0,0.000203,2]
[349690026,1737377466999,-250.0,0.000203,2]
[349690027,1737377467009,-250.0,0.000203,2]
[349690028,1737377467021,-250.0,0.000203,2]
[349690029,1737377467031,-250.0,0.000203,2]
[349690030,1737377467040,-250.0,0.000203,2]
[349690031,1737377467049,-250.0,0.000203,2]
[349690032,1737377467058,-250.0,0.000203,2]
[349690033,1737377467069,-250.0,0.000203,2]
[349690034,1737377467080,-250.0,0.000203,2]
[349690035,1737377467090,-250.0,0.000203,2]
[349690036,1737377467101,-250.0,0.000203,2]
[349690037,1737377467110,-250.0,0.000203,2]
[349690038,1737377467119,-250.0,0.000203,2]
[349690039,1737377467131,-250.0,0.000203,2]
[349690040,1737377467143,-1000.0,0.00020321,2]
[349690041,1737377467152,-7842.41690614,0.00020332,2]
[349690042,1737377467162,-500.0,0.00020335,2]
[349690043,1737377467171,-387.10659451,0.00020335,2]
[349690044,1737377467181,-500.0,0.00020353,2]
[349690045,1737377467190,-500.0,0.00020353,2]
[349690046,1737377467199,-500.0,0.00020353,2]
[349690047,1737377467209,-505.86,0.00020353,2]
[349690048,1737377467218,-725.93,0.00020353,2]
[349690049,1737377467227,-500.0,0.00020353,2]
[349690050,1737377467237,-500.0,0.00020353,2]
[349690051,1737377467246,-1112.19,0.00020353,2]
[349690052,1737377467255,-500.0,0.00020353,2]
[349690053,1737377467264,-2796.22,0.00020353,2]
[349690054,1737377467277,-599.74108847,0.00020353,2]
[349690055,1737377467286,-500.0,0.00020353,2]
[349690056,1737377467296,-500.0,0.00020353,2]
[349690057,1737377467305,-500.0,0.00020353,2]
[349690058,1737377467314,-500.0,0.00020353,2]
[349690059,1737377467324,-500.0,0.00020353,2]
[349690060,1737377467333,-860.7,0.00020353,2]
[349690061,1737377467342,-746.27,0.00020353,2]
[349690062,1737377467352,-500.0,0.00020353,2]
[349690063,1737377467361,-500.0,0.00020353,2]
[349690064,1737377467370,-500.0,0.00020353,2]
[349690065,1737377467379,-500.0,0.00020353,2]
[349690066,1737377467388,-500.0,0.00020353,2]
[349690067,1737377467397,-656.76,0.00020353,2]
[349690068,1737377467407,-500.0,0.00020353,2]
[349690069,1737377467416,-500.0,0.00020353,2]
[349690070,1737377467425,-500.0,0.00020353,2]
[349690071,1737377467434,-500.0,0.00020353,2]
[349690072,1737377467443,-844.35,0.00020353,2]
[349690073,1737377467452,-500.0,0.00020353,2]
[349690074,1737377467460,-500.0,0.00020353,2]
[349690075,1737377467469,-500.0,0.00020353,2]
[349690076,1737377467478,-636.13092813,0.00020353,2]
[349690077,1737377467488,-504.33638045,0.00020353,2]
[349690078,1737377467497,-500.0,0.00020353,2]
[349690079,1737377467506,-500.0,0.00020353,2]
[349690080,1737377467515,-554.98,0.00020353,2]
[349690081,1737377467526,-500.0,0.00020353,2]
[349690082,1737377467535,-706.13,0.00020353,2]
[349690083,1737377467545,-500.0,0.00020353,2]
[349690084,1737377467554,-500.0,0.00020353,2]
[349690085,1737377467563,-700.5,0.00020353,2]
[349690086,1737377467572,-500.0,0.00020353,2]
[349690087,1737377467581,-817.82,0.00020353,2]
[349690088,1737377467590,-500.0,0.00020353,2]
[349690089,1737377467599,-500.0,0.00020353,2]
[349690090,1737377467608,-500.0,0.00020353,2]
[349690091,1737377467617,-840.73,0.00020353,2]
[349690092,1737377467627,-186.67020234,0.00020353,2]
[349690093,1737377467636,-500.0,0.00020353,2]
[349690094,1737377467645,-978.26,0.00020353,2]
[349690095,1737377467655,-807.37,0.00020353,2]
[349690096,1737377467664,-500.0,0.00020353,2]
[349690097,1737377467674,-535.23,0.00020353,2]
[349690098,1737377467683,-911.36,0.00020353,2]
[349690099,1737377467692,-918.51,0.00020353,2]
[349690100,1737377467701,-500.0,0.00020353,2]
[349690101,1737377467710,-761.42,0.00020353,2]
[349690102,1737377467720,-500.0,0.00020353,2]
[349690103,1737377467729,-500.0,0.00020353,2]
[349690104,1737377467738,-2935.79,0.00020353,2]
[349690105,1737377467748,-500.0,0.00020353,2]
[349690106,1737377467757,-4234.6,0.00020353,2]
[349690107,1737377467767,-766.29,0.00020353,2]
[349690108,1737377467777,-727.87,0.00020353,2]
[349690109,1737377467787,-3864.35,0.00020353,2]
[349690110,1737377467796,-500.0,0.00020353,2]
[349690111,1737377467806,-500.0,0.00020353,2]
[349690112,1737377467815,-1299.27,0.00020353,2]
[349690113,1737377467824,-3588.13,0.00020353,2]
[349690114,1737377467835,-2046.38,0.00020353,2]
[349690115,1737377467844,-1932.2,0.00020353,2]
[349690116,1737377467854,-576.23,0.00020353,2]
[349690117,1737377467864,-500.0,0.00020353,2]
[349690118,1737377467873,-1757.51,0.00020353,2]
[349690119,1737377467882,-1791.29,0.00020353,2]
[349690120,1737377467892,-2156.53,0.00020353,2]
[349690121,1737377467901,-2141.05,0.00020353,2]
[349690122,1737377467910,-1660.42,0.00020353,2]
[349690123,1737377467919,-500.0,0.00020353,2]
[349690124,1737377467929,-1133.61,0.00020353,2]
[349690125,1737377467939,-555.92,0.00020353,2]
[349690126,1737377467948,-2180.96,0.00020353,2]
[349690127,1737377467958,-500.0,0.00020353,2]
[349690128,1737377467968,-645.51,0.00020353,2]
[349690129,1737377467977,-561.67,0.00020353,2]
[349690130,1737377467987,-2173.11,0.00020353,2]
[349690131,1737377467996,-500.0,0.00020353,2]
[349690132,1737377468005,-1564.48,0.00020353,2]
[349690133,1737377468015,-500.0,0.00020353,2]
[349690134,1737377468028,-1133.54,0.00020353,2]
[349690135,1737377468038,-1145.98,0.00020353,2]
[349690136,1737377468047,-500.0,0.00020353,2]
[349690137,1737377468057,-752.83,0.00020353,2]
[349690138,1737377468069,-500.0,0.00020353,2]
[349690139,1737377468078,-500.0,0.00020353,2]
[349690140,1737377468088,-560.53,0.00020353,2]
[349690141,1737377468099,-766.9,0.00020353,2]
[349690142,1737377468108,-500.0,0.00020353,2]
[349690143,1737377468117,-500.0,0.00020353,2]
[349690144,1737377468127,-660.28,0.00020353,2]
[349690145,1737377468137,-943.53,0.00020353,2]
[349690146,1737377468148,-1337.38,0.00020353,2]
[349690147,1737377468158,-771.84,0.00020353,2]
[349690148,1737377468167,-500.0,0.00020353,2]
[349690149,1737377468176,-500.0,0.00020353,2]
[349690150,1737377468186,-1005.87,0.00020353,2]
[349690151,1737377468195,-1060.85,0.00020353,2]
[349690152,1737377468205,-500.0,0.00020353,2]
[349690153,1737377468214,-500.0,0.00020353,2]
[349690154,1737377468224,-980.61,0.00020353,2]